fUSD/lending_fUSD_20250812
["ID","MTS","AMOUNT","RATE_DAILY","PERIOD"]
[378692649,1754958765507,-834.11,0.00041095,120]
[378692650,1754958765519,-834.11,0.00041095,120]
[378692651,1754958765530,-834.11,0.00041095,120]
[378692652,1754958765540,-834.11,0.00041095,120]
[378692653,1754958765551,-834.11,0.00041095,120]
[378692654,1754958765562,-834.11,0.00041095,120]
[378692655,1754958765572,-834.11,0.00041095,120]
[378692656,1754958765582,-834.11,0.00041095,120]
[378692657,1754958765592,-834.11,0.00041095,120]
[378692658,1754958765602,-834.11,0.00041095,120]
[378692659,1754958765611,-834.11,0.00041095,120]
[378692660,1754958765621,-834.11,0.00041095,120]
[378692661,1754958765631,-834.11,0.00041095,120]
[378692662,1754958765642,-834.31170846,0.00041095,120]
[378692663,1754958765654,-2000.0,0.00041095,30]
[378692664,1754958765665,-1708.11,0.00041095,30]
[378692665,1754958765676,-3500.0,0.00041095,10]
[378692666,1754958765688,-868.05370693,0.00041095,10]
[378692667,1754958765699,-1001.98344178,0.00041095,30]
[378692668,1754958765711,-500.0,0.00041096,10]
[378692669,1754958765721,-361.64,0.00041096,120]
[378692670,1754958765731,-2000.0,0.00041096,120]
[378692671,1754958765742,-2000.0,0.00041096,120]
[378692672,1754958765751,-2000.0,0.00041096,120]
[378692673,1754958765764,-2000.0,0.00041096,120]
[378692674,1754958765774,-2000.0,0.00041096,120]
[378692675,1754958765783,-2000.0,0.00041096,120]
[378692676,1754958765793,-2000.0,0.00041096,120]
[378692677,1754958765803,-2000.0,0.00041096,120]
[378692678,1754958765816,-2000.0,0.00041096,120]
[378692679,1754958765827,-2000.0,0.00041096,120]
[378692680,1754958765838,-2000.0,0.00041096,120]
[378692681,1754958765848,-2000.0,0.00041096,120]
[378692682,1754958765859,-2000.0,0.00041096,120]
[378692683,1754958765870,-2000.0,0.00041096,120]
[378692684,1754958765879,-2000.0,0.00041096,120]
[378692685,1754958765890,-2000.0,0.00041096,120]
[378692686,1754958765900,-2000.0,0.00041096,120]
[378692687,1754958765911,-2000.0,0.00041096,120]
[378692688,1754958765921,-2023.0,0.00041096,120]
[378692689,1754958765931,-2000.0,0.00041096,120]
[378692690,1754958765941,-2000.0,0.00041096,120]
[378692691,1754958765951,-2000.0,0.00041096,120]
[378692692,1754958765961,-2000.0,0.00041096,120]
[378692693,1754958765972,-2024.0,0.00041096,120]
[378692694,1754958765983,-162.0,0.00041096,120]
[378692695,1754958765995,-1164.0,0.00041096,120]
[378692696,1754958766005,-165.85,0.00041096,120]
[378692697,1754958766016,-502.0,0.00041096,2]
[378692698,1754958766026,-754.0,0.000411,14]
[378692699,1754958766036,-16288.00347746,0.000411,120]
[378692700,1754958766045,-500.0,0.000411,2]
[378692701,1754958766055,-1200.0,0.000411,2]
[378692702,1754958766065,-650.0,0.000411,2]
[378692703,1754958766075,-7928.04707851,0.00041116,120]
[378692704,1754958766086,-3077.13,0.00041123,120]
[378692705,1754958766097,-391.0,0.0004114,30]
[378692706,1754958766110,-3077.13,0.0004126,120]
[378692707,1754958766120,-1721.73,0.00041369,14]
[378692708,1754958766131,-223.58,0.00041369,25]
[378692709,1754958766141,-502.0,0.0004137,2]
[378692710,1754958766150,-3077.13,0.00041397,120]
[378692711,1754958766160,-2000.0,0.000415,120]
[378692712,1754958766170,-3077.13,0.00041534,120]
[378692713,1754958766180,-18478.96597034,0.00041538,37]
[378692714,1754958766190,-1591.36,0.00041558,30]
[378692715,1754958766199,-648.9,0.000416,120]
[378692716,1754958766211,-1721.73,0.00041643,14]
[378692717,1754958766222,-1000.0,0.00041644,10]
[378692718,1754958766234,-502.0,0.00041644,2]
[378692719,1754958766244,-3077.13,0.00041671,120]
[378692720,1754958766254,-2104.88,0.000418,120]
[378692721,1754958766266,-1928.38553487,0.000418,120]
[378692722,1754958766275,-3077.34824896,0.00041808,120]
[378692723,1754958766286,-151.0,0.000419,120]
[378692724,1754958766297,-1721.9621194,0.00041917,14]
[378692725,1754958766308,-223.58,0.00041917,26]
[378692726,1754958766320,-502.0,0.00041918,2]
[378692727,1754958766331,-67819.66766,0.00041999,120]
[378692728,1754958766340,-200.0,0.00041999,120]
[378692729,1754958766351,-1000.0,0.00042,120]
[378692730,1754958766360,-300.0,0.00042,120]
[378692731,1754958766370,-5665.6943787,0.00042,120]
[378692732,1754958766380,-5813.0,0.00042,120]
[378692733,1754958766392,-1000.0,0.00042,120]
[378692734,1754958766402,-200.0,0.00042,2]
[378692735,1754958766413,-599.03856553,0.00042,120]
[378692736,1754958766424,-150.0,0.00042,90]
[378692737,1754958766437,-1726.0,0.00042,120]
[378692738,1754958766447,-150.81325134,0.00042,120]
[378692739,1754958766457,-303.55245396,0.00042,120]
[378692740,1754958766467,-20981.83017432,0.00042,120]
[378692741,1754958766478,-849.38266833,0.00042,30]
[378692742,1754958766492,-500.0,0.00042,120]
[378692743,1754958766501,-465.1,0.00042,120]
[378692744,1754958766761,-302.98034224,0.00042,30]
[378692745,1754958766775,-314.62737115,0.00042,30]
[378692746,1754958766784,-2455.20290386,0.00042,21]
[378692747,1754958766793,-296.00822567,0.00042,30]
[378692748,1754958766803,-39107.0,0.00042,120]
[378692749,1754958766814,-5598.94472899,0.00042,120]
[378692750,1754958766826,-1344.34650061,0.0004201,2]
[378692751,1754958766836,-582.0,0.000421,3]
[378692752,1754958766845,-151.0,0.000421,120]
[378692753,1754958766855,-216.66286831,0.00042121,120]
[378692754,1754958766865,-1321.98147217,0.00042192,10]
[378692755,1754958766876,-502.0,0.00042192,2]
[378692756,1754958766886,-3600.0,0.000422,2]
[378692757,1754958766896,-18478.96597034,0.00042204,39]
[378692758,1754958766906,-16361.74086749,0.00042222,2]
[378692759,1754958766916,-3022.22,0.00042234,120]
[378692760,1754958766925,-5826.88,0.0004225,120]
[378692761,1754958766934,-3950.64036679,0.000424,120]
[378692762,1754958766943,-223.58,0.00042465,27]
[378692763,1754958766952,-3134.2,0.00042465,120]
[378692764,1754958766964,-502.0,0.00042466,2]
[378692765,1754958766973,-240.6426737,0.000425,120]
[378692766,1754958766983,-1000.0,0.000425,2]
[378692767,1754958766993,-5115.99138303,0.000425,120]
[378692768,1754958767003,-2500.0,0.000425,120]
[378692769,1754958767013,-1591.82,0.00042553,30]
[378692770,1754958767023,-467.4,0.00042553,30]
[378692771,1754958767033,-1584.38721456,0.00042666,120]
[378692772,1754958767045,-502.0,0.0004274,2]
[378692773,1754958767054,-457.0,0.0004276,41]
[378692774,1754958767064,-1004.91504199,0.00042795,120]
[378692775,1754958767075,-151.0,0.000428,120]
[378692776,1754958767084,-980.09906353,0.0004282,2]
[378692777,1754958767093,-2243.53,0.00042827,30]
[378692778,1754958767102,-538.3,0.00042827,30]
[378692779,1754958767111,-150.0,0.00042827,30]
[378692780,1754958767121,-150.0,0.00042827,30]
[378692781,1754958767130,-165.73,0.00042827,30]
[378692782,1754958767140,-359.87,0.00042827,30]
[378692783,1754958767150,-538.3,0.00042827,30]
[378692784,1754958767159,-165.73,0.00042827,30]
[378692785,1754958767168,-538.3,0.00042827,30]
[378692786,1754958767177,-150.0,0.00042827,30]
[378692787,1754958767187,-150.0,0.00042827,30]
[378692788,1754958767198,-535.66,0.00042827,30]
[378692789,1754958767207,-165.49,0.00042827,30]
[378692790,1754958767217,-359.87,0.00042827,30]
[378692791,1754958767226,-150.0,0.00042827,30]
[378692792,1754958767235,-150.0,0.00042827,30]
[378692793,1754958767245,-150.0,0.00042827,30]
[378692794,1754958767255,-359.87,0.00042827,30]
[378692795,1754958767264,-150.0,0.00042827,30]
[378692796,1754958767275,-358.15,0.00042827,30]
[378692797,1754958767284,-18478.96597034,0.00042869,40]
[378692798,1754958767293,-11766.48,0.000429,120]
[378692799,1754958767303,-21579.71,0.000429,120]
[378692800,1754958767314,-200000.0,0.000429,120]
[378692801,1754958767324,-182905.63,0.000429,120]
[378692802,1754958767334,-20000.0,0.000429,120]
[378692803,1754958767346,-12799.43909921,0.00042999,120]
[378692804,1754958767355,-349.74554354,0.00042999,120]
[378692805,1754958767364,-655.72712296,0.00043,120]
[378692806,1754958767374,-50165.51635471,0.00043,30]
[378692807,1754958767383,-500.0,0.00043,120]
[378692808,1754958767392,-500.0,0.00043,120]
[378692809,1754958767401,-10429.27429057,0.00043,120]
[378692810,1754958767410,-783.77521714,0.00043,120]
[378692811,1754958767419,-151.72967034,0.00043,120]
[378692812,1754958767429,-3219.69552401,0.00043,120]
[378692813,1754958767438,-10300.0,0.00043,120]
[378692814,1754958767447,-10000.0,0.00043,120]
[378692815,1754958767456,-214.0,0.00043,7]
[378692816,1754958767466,-1000.0,0.00043,30]
[378692817,1754958767478,-3618.18001599,0.00043,120]
[378692818,1754958767488,-180.83770543,0.00043,120]
[378692819,1754958767499,-191.97,0.00043,30]
[378692820,1754958767508,-345.2,0.00043,120]
[378692821,1754958767518,-223.61890537,0.00043013,28]
[378692822,1754958767528,-502.0,0.00043014,2]
[378692823,1754958767537,-7928.04707851,0.00043116,120]
[378692824,1754958767547,-156.0,0.00043151,90]
[378692825,1754958767556,-3277.22419474,0.00043234,120]
[378692826,1754958767565,-2546.86,0.00043287,37]
[378692827,1754958767575,-502.0,0.00043288,2]
[378692828,1754958767585,-2142.99992435,0.0004329,120]
[378692829,1754958767594,-3724.4,0.00043357,120]
[378692830,1754958767604,-151.0,0.000434,120]
[378692831,1754958767613,-1105.00332845,0.00043445,120]
[378692832,1754958767622,-192.736788,0.00043499,120]
[378692833,1754958767631,-797.19234693,0.000435,120]
[378692834,1754958767641,-18478.96597034,0.00043535,42]
[378692835,1754958767651,-502.0,0.00043562,2]
[378692836,1754958767661,-1912.6,0.000436,120]
[378692837,1754958767671,-2000.0,0.000436,2]
[378692838,1754958767680,-513.0,0.00043669,38]
[378692839,1754958767689,-1042.0,0.0004369,2]
[378692840,1754958767699,-2027.0,0.0004369,2]
[378692841,1754958767708,-565.0,0.0004369,2]
[378692842,1754958767717,-1171.0,0.0004369,2]
[378692843,1754958767726,-716.0,0.0004369,2]
[378692844,1754958767735,-5826.88,0.00043692,120]
[378692845,1754958767744,-458.94106532,0.000437,120]
[378692846,1754958767754,-531.37814996,0.00043799,120]
[378692847,1754958767763,-1041.27986161,0.00043799,120]
[378692848,1754958767772,-328.64315669,0.000438,120]
[378692849,1754958767781,-1346.89184582,0.000438,119]
[378692850,1754958767790,-1683.77,0.000438,120]
[378692851,1754958767800,-151.0,0.000438,120]
[378692852,1754958767809,-700.0,0.00043836,18]
[378692853,1754958767823,-700.0,0.00043836,18]
[378692854,1754958767832,-502.0,0.00043836,2]
[378692855,1754958767843,-176.43750922,0.0004384,120]
[378692856,1754958767856,-176.43,0.0004384,120]
[378692857,1754958767865,-164.6750086,0.0004384,120]
[378692858,1754958767876,-164.6750086,0.0004384,120]
[378692859,1754958767886,-164.6750086,0.0004384,120]
[378692860,1754958767895,-164.6750086,0.0004384,120]
[378692861,1754958767905,-164.67,0.0004384,120]
[378692862,1754958767915,-161.71680255,0.0004384,120]
[378692863,1754958767924,-161.71,0.0004384,120]
[378692864,1754958767934,-150.93568238,0.0004384,120]
[378692865,1754958767943,-150.93568238,0.0004384,120]
[378692866,1754958767952,-150.93568238,0.0004384,120]
[378692867,1754958767962,-150.93568238,0.0004384,120]
[378692868,1754958767971,-150.93,0.0004384,120]
[378692869,1754958767980,-639.53591425,0.0004384,120]
[378692870,1754958767989,-639.53591425,0.0004384,120]
[378692871,1754958767999,-639.53591425,0.0004384,120]
[378692872,1754958768008,-639.53591425,0.0004384,120]
[378692873,1754958768018,-639.53591425,0.0004384,120]
[378692874,1754958768027,-639.53591425,0.0004384,120]
[378692875,1754958768036,-639.53591425,0.0004384,120]
[378692876,1754958768045,-639.53591425,0.0004384,120]
[378692877,1754958768055,-639.53591425,0.0004384,120]
[378692878,1754958768064,-639.53591425,0.0004384,120]
[378692879,1754958768076,-639.53591425,0.0004384,120]
[378692880,1754958768085,-639.53591425,0.0004384,120]
[378692881,1754958768095,-639.53591425,0.0004384,120]
[378692882,1754958768105,-639.53591425,0.0004384,120]
[378692883,1754958768114,-639.53591425,0.0004384,120]
[378692884,1754958768123,-639.53591425,0.0004384,120]
[378692885,1754958768133,-639.53591425,0.0004384,120]
[378692886,1754958768143,-639.53591425,0.0004384,120]
[378692887,1754958768152,-639.53591425,0.0004384,120]
[378692888,1754958768161,-639.53,0.0004384,120]
[378692889,1754958768171,-1492.25046659,0.0004384,120]
[378692890,1754958768181,-1492.25046659,0.0004384,120]
[378692891,1754958768190,-1492.25046659,0.0004384,120]
[378692892,1754958768200,-1492.25046659,0.0004384,120]
[378692893,1754958768210,-1492.25046659,0.0004384,120]
[378692894,1754958768219,-1492.25046659,0.0004384,120]
[378692895,1754958768229,-1492.25046659,0.0004384,120]
[378692896,1754958768238,-1492.25046659,0.0004384,120]
[378692897,1754958768247,-1492.25046659,0.0004384,120]
[378692898,1754958768256,-1492.25046659,0.0004384,120]
[378692899,1754958768266,-1492.25046659,0.0004384,120]
[378692900,1754958768276,-1492.25046659,0.0004384,120]
[378692901,1754958768285,-1492.25046659,0.0004384,120]
[378692902,1754958768295,-1492.25046659,0.0004384,120]
[378692903,1754958768304,-1492.25046659,0.0004384,120]
[378692904,1754958768314,-1492.25046659,0.0004384,120]
[378692905,1754958768323,-1492.25046659,0.0004384,120]
[378692906,1754958768332,-1492.25046659,0.0004384,120]
[378692907,1754958768342,-1492.25046659,0.0004384,120]
[378692908,1754958768351,-1492.25,0.0004384,120]
[378692909,1754958768361,-648.9,0.000439,120]
[378692910,1754958768371,-1500.0,0.0004396,42]
[378692911,1754958768381,-600.0,0.0004399,120]
[378692912,1754958768391,-300.0,0.00044,120]
[378692913,1754958768401,-265.86002602,0.00044,120]
[378692914,1754958768411,-200.0,0.00044,2]
[378692915,1754958768420,-150.0,0.00044,90]
[378692916,1754958768430,-2500.0,0.00044,120]
[378692917,1754958768439,-852.78731056,0.00044,120]
[378692918,1754958768448,-500.0,0.00044,120]
[378692919,1754958768457,-646.53349595,0.00044,120]
[378692920,1754958768466,-467.6747985,0.00044,120]
[378692921,1754958768475,-278.10075751,0.00044,120]
[378692922,1754958768485,-3264.0,0.00044,120]
[378692923,1754958768495,-391.96494395,0.00044,120]
[378692924,1754958768506,-290.44616859,0.00044,120]
[378692925,1754958768516,-9099.4734068,0.00044,120]
[378692926,1754958768526,-200.0,0.00044,120]
[378692927,1754958768535,-4615.7,0.00044,120]
[378692928,1754958768545,-536.173746,0.00044,57]
[378692929,1754958768555,-4000.0,0.00044,8]
[378692930,1754958768565,-502.0,0.0004411,2]
[378692931,1754958768575,-18478.96597034,0.000442,43]
[378692932,1754958768584,-502.0,0.00044384,2]
[378692933,1754958768595,-159.80365291,0.0004439,120]
[378692934,1754958768604,-188.10289527,0.000444,33]
[378692935,1754958768613,-188.97587705,0.000444,33]
[378692936,1754958768623,-224.66147024,0.000444,33]
[378692937,1754958768632,-1500.0,0.0004444,48]
[378692938,1754958768642,-502.0,0.00044658,2]
[378692939,1754958768651,-2281.45970863,0.000447,60]
[378692940,1754958768661,-151.0,0.000448,120]
[378692941,1754958768671,-151.0,0.000448,120]
[378692942,1754958768682,-1865.0,0.000449,120]
[378692943,1754958768691,-3667.20430904,0.000449,30]
[378692944,1754958768700,-502.0,0.00044932,2]
[378692945,1754958768710,-222.45251091,0.00044999,120]
[378692946,1754958768720,-1000.0,0.00044999,120]
[378692947,1754958768729,-1300.0,0.00045,7]
[378692948,1754958768738,-1000.0,0.00045,120]
[378692949,1754958768747,-1000.0,0.00045,120]
[378692950,1754958768756,-30236.92839963,0.00045,2]
[378692951,1754958768766,-279.04457465,0.00045,120]
[378692952,1754958768775,-525.08415627,0.00045,120]
[378692953,1754958768785,-1000.0,0.00045,120]
[378692954,1754958768795,-471.85433404,0.00045,120]
[378692955,1754958768804,-200.0,0.00045,10]
[378692956,1754958768816,-284.32920552,0.00045,60]
[378692957,1754958768827,-1389.15615311,0.00045,30]
[378692958,1754958768837,-2153.7028502,0.00045,30]
[378692959,1754958768846,-28248.52323463,0.00045,10]
[378692960,1754958768856,-2365.68638807,0.00045,14]
[378692961,1754958768866,-466.0,0.00045,120]
[378692962,1754958768876,-1095.89949839,0.00045,32]
[378692963,1754958768886,-159.38246546,0.00045,120]
[378692964,1754958768898,-186.6772528,0.00045,120]
[378692965,1754958768906,-246.60444616,0.00045,120]
[378692966,1754958768915,-264454.10659329,0.00045,120]
[378692967,1754958768925,-5037.4329476,0.00045,120]
[378692968,1754958768934,-269.4847033,0.00045,120]
[378692969,1754958768944,-500.0,0.00045,120]
[378692970,1754958768953,-2110.0,0.00045,120]
[378692971,1754958768963,-173.12950007,0.00045,30]
[378692972,1754958768972,-525.48714954,0.00045,120]
[378692973,1754958768981,-3743.88182876,0.00045,120]
[378692974,1754958768990,-406.65757279,0.00045,120]
[378692975,1754958768999,-6704.18329598,0.00045,120]
[378692976,1754958769009,-262.0,0.00045,10]
[378692977,1754958769019,-10000.0,0.00045,30]
[378692978,1754958769029,-289.44914634,0.00045,120]
[378692979,1754958769039,-163.9,0.00045,85]
[378692980,1754958769137,-3264.0,0.00045,120]
[378692981,1754958769147,-2220.97139497,0.00045,120]
[378692982,1754958769157,-356.75909053,0.00045,120]
[378692983,1754958769166,-152.86997233,0.00045,120]
[378692984,1754958769175,-2947.96787679,0.00045,120]
[378692985,1754958769185,-6637.57029954,0.00045,120]
[378692986,1754958769194,-4000.0,0.00045,90]
[378692987,1754958769203,-14654.48043174,0.00045,120]
[378692988,1754958769212,-938.11354994,0.00045,120]
[378692989,1754958769221,-42811.54924567,0.00045,40]
[378692990,1754958769231,-518.0,0.00045,120]
[378692991,1754958769241,-9000.0,0.00045,120]
[378692992,1754958769250,-2571.69907733,0.00045,120]
[378692993,1754958769259,-150.0,0.00045,120]
[378692994,1754958769269,-270.0,0.00045,120]
[378692995,1754958769279,-300.0,0.00045,120]
[378692996,1754958769288,-1079247.09221331,0.00045114,120]
[378692997,1754958769296,-5826.88,0.00045134,120]
[378692998,1754958769306,-3134.2,0.00045205,120]
[378692999,1754958769315,-502.0,0.00045206,2]
[378693000,1754958769324,-3022.22,0.00045234,120]
[378693001,1754958769333,-548.0,0.00045254,60]
[378693002,1754958769342,-157.0,0.00045308,90]
[378693003,1754958769352,-502.0,0.0004548,2]
[378693004,1754958769360,-739.34,0.00045679,7]
[378693005,1754958769370,-4000.0,0.00045679,7]
[378693006,1754958769379,-1500.0,0.0004568,48]
[378693007,1754958769389,-1500.0,0.0004569,45]
[378693008,1754958769398,-151.0,0.000457,120]
[378693009,1754958769407,-502.0,0.00045754,2]
[378693010,1754958769416,-1069.7144946,0.000459,120]
[378693011,1754958769425,-285.58135122,0.000459,30]
[378693012,1754958769435,-328848.49084124,0.0004599,60]
[378693013,1754958769444,-253.7755397,0.00046,7]
[378693014,1754958769453,-400.0,0.00046,120]
[378693015,1754958769462,-200.0,0.00046,10]
[378693016,1754958769472,-150.0,0.00046,90]
[378693017,1754958769481,-10429.19822115,0.00046,120]
[378693018,1754958769490,-500.0,0.00046,120]
[378693019,1754958769499,-50000.0,0.00046,10]
[378693020,1754958769509,-482.30469784,0.00046,60]
[378693021,1754958769518,-302.01950706,0.00046,120]
[378693022,1754958769527,-3264.0,0.00046,120]
[378693023,1754958769537,-31978.6726109,0.00046,9]
[378693024,1754958769546,-1253.6141893,0.00046,120]
[378693025,1754958769555,-755.87840255,0.00046,120]
[378693026,1754958769564,-50000.0,0.00046,120]
[378693027,1754958769573,-2865.2175,0.00046027,120]
[378693028,1754958769583,-502.0,0.00046028,2]
[378693029,1754958769593,-151.0,0.000461,120]
[378693030,1754958769602,-225.79,0.00046143,2]
[378693031,1754958769611,-2000.0,0.000463,2]
[378693032,1754958769620,-502.0,0.00046301,2]
[378693033,1754958769629,-513.0,0.00046391,41]
[378693034,1754958769638,-1400.96545577,0.000464,120]
[378693035,1754958769648,-824.89093577,0.000464,120]
[378693036,1754958769657,-400.0,0.00046575,2]
[378693037,1754958769667,-400.0,0.00046575,2]
[378693038,1754958769676,-400.0,0.00046575,2]
[378693039,1754958769685,-406.35851348,0.00046575,2]
[378693040,1754958769694,-502.0,0.00046575,2]
[378693041,1754958769703,-5826.88,0.00046576,120]
[378693042,1754958769712,-158.43997436,0.00046589,120]
[378693043,1754958769721,-500.0,0.000466,2]
[378693044,1754958769731,-1200.0,0.000466,2]
[378693045,1754958769740,-531.0,0.000466,2]
[378693046,1754958769750,-1042.0,0.0004669,2]
[378693047,1754958769760,-565.0,0.0004669,2]
[378693048,1754958769769,-1171.0,0.0004669,2]
[378693049,1754958769778,-437.651,0.0004669,2]
[378693050,1754958769788,-151.0,0.000467,120]
[378693051,1754958769797,-1680.0,0.00046754,60]
[378693052,1754958769807,-2446.88102671,0.000468,120]
[378693053,1754958769817,-707.68396249,0.000468,120]
[378693054,1754958769827,-502.0,0.00046849,2]
[378693055,1754958769836,-2000.0,0.0004696,48]
[378693056,1754958769845,-440.0,0.00046986,120]
[378693057,1754958769855,-200.0,0.00047,50]
[378693058,1754958769864,-293.19245852,0.00047,90]
[378693059,1754958769874,-2500.0,0.00047,120]
[378693060,1754958769883,-601.12659875,0.00047,30]
[378693061,1754958769894,-500.0,0.00047,120]
[378693062,1754958769903,-200.0,0.00047,120]
[378693063,1754958769912,-3264.0,0.00047,120]
[378693064,1754958769921,-4000.0,0.00047,8]
[378693065,1754958769931,-502.0,0.00047123,2]
[378693066,1754958769940,-3022.22,0.00047234,120]
[378693067,1754958769949,-507.81607604,0.00047397,2]
[378693068,1754958769959,-151.0,0.000475,120]
[378693069,1754958769968,-26832.18757805,0.000475,120]
[378693070,1754958769977,-5267.07226692,0.000476,2]
[378693071,1754958769987,-2000.0,0.000477,120]
[378693072,1754958769996,-1738.0,0.000477,120]
[378693073,1754958770005,-216.0,0.000477,120]
[378693074,1754958770014,-151.0,0.000477,120]
[378693075,1754958770023,-897.94932926,0.000478,120]
[378693076,1754958770033,-814.12928388,0.0004788,100]
[378693077,1754958770042,-2000.0,0.00047883,48]
[378693078,1754958770051,-9488.27222712,0.000479,120]
[378693079,1754958770061,-3134.2,0.00047945,120]
[378693080,1754958770069,-2000.0,0.0004796,45]
[378693081,1754958770079,-1000.0,0.00047962,20]
[378693082,1754958770088,-300.0,0.00048,120]
[378693083,1754958770097,-1000.0,0.00048,120]
[378693084,1754958770106,-401159.34752129,0.00048,30]
[378693085,1754958770115,-200.0,0.00048,50]
[378693086,1754958770124,-275.13480323,0.00048,120]
[378693087,1754958770133,-150.0,0.00048,90]
[378693088,1754958770143,-2500.0,0.00048,120]
[378693089,1754958770152,-1460.77294209,0.00048,120]
[378693090,1754958770161,-594.94967055,0.00048,120]
[378693091,1754958770170,-500.0,0.00048,120]
[378693092,1754958770180,-165533.98861128,0.00048,120]
[378693093,1754958770188,-4947.40792987,0.00048,30]
[378693094,1754958770197,-3264.0,0.00048,120]
[378693095,1754958770206,-6886.8141337,0.00048,120]
[378693096,1754958770215,-1253.6141893,0.00048,120]
[378693097,1754958770224,-755.87840255,0.00048,120]
[378693098,1754958770233,-21074.23342625,0.00048,30]
[378693099,1754958770242,-5000.0,0.00048,7]
[378693100,1754958770251,-42969.56511264,0.00048,120]
[378693101,1754958770260,-1091.36864985,0.000481,120]
[378693102,1754958770270,-4832.96,0.000482,120]
[378693103,1754958770278,-560.0,0.00048317,120]
[378693104,1754958770288,-155.52697941,0.0004835,2]
[378693105,1754958770297,-821.91449299,0.000485,120]
[378693106,1754958770306,-2000.0,0.0004856,47]
[378693107,1754958770315,-30089.91470653,0.000486,45]
[378693108,1754958770324,-2000.0,0.0004869,42]
[378693109,1754958770333,-1048.00349634,0.0004869,46]
[378693110,1754958770342,-191.19,0.0004869,120]
[378693111,1754958770351,-151.0,0.000487,120]
[378693112,1754958770360,-31366.38,0.000487,2]
[378693113,1754958770369,-3183.575,0.00048767,120]
[378693114,1754958770379,-160163.03391683,0.000488,120]
[378693115,1754958770387,-17002.45759032,0.000488,120]
[378693116,1754958770396,-16290.33961068,0.000488,120]
[378693117,1754958770405,-151.0,0.000488,120]
[378693118,1754958770414,-5891.374909,0.000488,2]
[378693119,1754958770423,-265.53528524,0.0004888,120]
[378693120,1754958770432,-500.0,0.00048888,120]
[378693121,1754958770441,-1206.3628624,0.000489,120]
[378693122,1754958770450,-2846113.38,0.000489,120]
[378693123,1754958770459,-440.0,0.00048986,120]
[378693124,1754958770468,-173.58690478,0.00048999,30]
[378693125,1754958770477,-1000.0,0.00049,120]
[378693126,1754958770486,-1000000.0,0.00049,120]
[378693127,1754958770495,-500.0,0.00049,120]
[378693128,1754958770504,-200.0,0.00049,50]
[378693129,1754958770514,-166.48257957,0.00049,120]
[378693130,1754958770522,-297.38225031,0.00049,30]
[378693131,1754958770531,-773.28944788,0.00049,30]
[378693132,1754958770540,-500.0,0.00049,120]
[378693133,1754958770550,-2342.38177873,0.00049,120]
[378693134,1754958770559,-500000.0,0.00049,120]
[378693135,1754958770568,-2325.8597827,0.00049,120]
[378693136,1754958770578,-13320.63108651,0.00049,30]
[378693137,1754958770587,-3264.0,0.00049,120]
[378693138,1754958770596,-2316.10094142,0.00049,120]
[378693139,1754958770605,-392.71142544,0.00049,120]
[378693140,1754958770615,-20000.0,0.00049,14]
[378693141,1754958770623,-230.86147231,0.00049,120]
[378693142,1754958770632,-2000.0,0.00049,2]
[378693143,1754958770641,-513.0,0.00049113,45]
[378693144,1754958770651,-25664.85894933,0.000492,120]
[378693145,1754958770659,-3022.22,0.00049234,120]
[378693146,1754958770669,-310.0,0.00049315,30]
[378693147,1754958770678,-700.0,0.00049315,20]
[378693148,1754958770687,-700.0,0.00049315,20]